[Event "FIDE CB Open 2022"]
[Site "Ceske Budejovice"]
[Date "2022.07.01"]
[Round "1.23"]
[White "Abdulla, Khayala"]
[Black "Musil, Vitezslav"]
[Result "1/2-1/2"]
[ECO "C12"]
[WhiteElo "2207"]
[BlackElo "1834"]
[Annotator "RC"]
[PlyCount "96"]
[EventDate "2022.07.01"]
[EventType "swiss"]
[EventCountry "CZE"]
[SourceTitle "playchess.com"]
[Source "ChessBase"]
[SourceQuality "1"]
[TimeControl "40/5400+30:1800+30"]

1. e4 {[%emt 0:00:10]} e6 {[%emt 0:00:10]} 2. d4 {[%emt 0:00:04]} d5 {[%emt 0:00:06]} 3. Nc3 {[%emt 0:00:53]} Nf6 {[%emt 0:01:13]} 4. Bg5 {[%emt 0:00:21]} Bb4 {[%emt 0:00:22]} 5. e5 {[%emt 0:00:12]} h6 {[%emt 0:00:06]} 6. Bd2 {[%emt 0:00:15]} Bxc3 {[%emt 0:00:07]} 7. bxc3 {[%emt 0:00:08]} Ne4 {[%emt 0:00:08]} 8. Qg4 {[%emt 0:00:38]} Kf8 {[%emt 0:00:57]} 9. Bd3 {[%emt 0:01:22]} Nxd2 {[%emt 0:00:45]} 10. Kxd2 {[%emt 0:00:07]} c5 {[%emt 0:03:40]} 11. h4 {[%emt 0:01:10]} Nc6 {[%emt 0:00:59]} 12. Rh3 {[%emt 0:04:18]} c4 {[%emt 0:00:59]} 13. Be2 {[%emt 0:02:09]} b5 {[%emt 0:04:04]} 14. Rg3 {[%emt 0:02:04]} Rg8 {[%emt 0:00:54]} 15. a3 {[%emt 0:01:51]} a5 {[%emt 0:12:48]} 16. Qf4 {[%emt 0:03:37]} Ne7 {[%emt 0:03:16]} 17. Rf3 {[%emt 0:10:00]} Nf5 {[%emt 0:02:22]} 18. g4 {[%emt 0:01:25]} g5 {[%emt 0:00:28]} 19. hxg5 {[%emt 0:00:52]} hxg5 {[%emt 0:00:06]} 20. Qh2 {[%emt 0:00:21]} Nh4 {[%emt 0:00:07]} 21. Rf6 {[%emt 0:01:23]} Rg6 {[%emt 0:02:13]} 22. Rxg6 {[%emt 0:00:50]} fxg6 {[%emt 0:01:12]} 23. Nf3 {[%emt 0:11:31]} Ra7 {[%emt 0:05:05]} 24. Nxh4 {[%emt 0:06:11]} gxh4 {[%emt 0:00:02]} 25. Qf4+ {[%emt 0:00:15]} Kg8 {[%emt 0:13:08]} 26. g5 {[%emt 0:01:52]} Rh7 {[%emt 0:01:08]} 27. Rh1 {[%emt 0:09:36]} Qf8 {[%emt 0:10:45]} 28. Rxh4 {[%emt 0:07:15]} Rxh4 {[%emt 0:00:42]} 29. Qxh4 {[%emt 0:00:06]} Bd7 {[%emt 0:00:12]} 30. Bg4 {[%emt 0:05:08]} b4 {[%emt 0:04:18]} 31. axb4 {[%emt 0:02:29]} axb4 {[%emt 0:00:05]} 32. Bd1 {[%emt 0:14:11]} bxc3+ {[%emt 0:07:21]} 33. Ke1 {[%emt 0:00:45]} Qf7 {[%emt 0:03:32]} 34. Qg3 {[%emt 0:04:39]} Qf5 {[%emt 0:02:14]} 35. Qxc3 {[%emt 0:04:47]} Qxg5 {[%emt 0:00:39]} 36. Qg3 {[%emt 0:00:18]} Qxg3 {[%emt 0:02:18]} 37. fxg3 {[%emt 0:00:04]} Kg7 {[%emt 0:00:10]} 38. Kd2 {[%emt 0:01:14]} Be8 {[%emt 0:01:55]} 39. Kc3 {[%emt 0:01:08]} Kf8 {[%emt 0:00:36]} 40. Kb4 {[%emt 0:00:56]} Ke7 {[%emt 0:01:16]} 41. c3 {[%emt 0:33:40]} g5 {[%emt 0:30:48]} 42. Kc5 {[%emt 0:00:00]} Bg6 {[%emt 0:00:00]} 43. Bf3 {[%emt 0:00:00]} Bf7 {[%emt 0:00:00]} 44. g4 {[%emt 0:00:00]} Kd7 {[%emt 0:00:00]} 45. Bd1 {[%emt 0:00:00]} Kc7 {[%emt 0:00:00]} 46. Bc2 {[%emt 0:00:00]} Kd7 {[%emt 0:00:00]} 47. Kb6 {[%emt 0:00:00]} Ke7 {[%emt 0:00:00]} 48. Kc7 {[%emt 0:00:00]} Be8 {[%emt 0:00:00]} 1/2-1/2

[Event "FIDE CB Open 2022"]
[Site "Ceske Budejovice"]
[Date "2022.07.01"]
[Round "1.24"]
[White "Zezula, Jakub"]
[Black "Mostbauer, Maximilian"]
[Result "1/2-1/2"]
[ECO "C10"]
[WhiteElo "1831"]
[BlackElo "2192"]
[Annotator "RC"]
[PlyCount "58"]
[EventDate "2022.07.01"]
[EventType "swiss"]
[EventCountry "CZE"]
[SourceTitle "playchess.com"]
[Source "ChessBase"]
[SourceQuality "1"]
[TimeControl "40/5400+30:1800+30"]

1. e4 {[%emt 0:00:05]} e6 {[%emt 0:00:06]} 2. d4 {[%emt 0:00:28]} d5 {[%emt 0:00:06]} 3. Nd2 {[%emt 0:00:27]} dxe4 {[%emt 0:00:21]} 4. Nxe4 {[%emt 0:00:22]} Nd7 {[%emt 0:00:08]} 5. Nf3 {[%emt 0:03:30]} Ngf6 {[%emt 0:00:11]} 6. Bd3 {[%emt 0:03:45]} Nxe4 {[%emt 0:01:45]} 7. Bxe4 {[%emt 0:00:09]} Nf6 {[%emt 0:00:06]} 8. Bd3 {[%emt 0:02:04]} c5 {[%emt 0:00:08]} 9. O-O {[%emt 0:08:30]} Qc7 {[%emt 0:05:47]} 10. Bg5 {[%emt 0:05:29]} c4 {[%emt 0:04:26]} 11. Be2 {[%emt 0:03:51]} Nd5 {[%emt 0:34:46]} 12. c3 {[%emt 0:07:29]} Bd7 {[%emt 0:07:06]} 13. Ne5 {[%emt 0:14:50]} Bd6 {[%emt 0:05:09]} 14. Nxd7 {[%emt 0:21:04]} Qxd7 {[%emt 0:00:05]} 15. Bxc4 {[%emt 0:02:39]} Bxh2+ {[%emt 0:01:15]} 16. Kh1 {[%emt 0:04:40]} Bc7 {[%emt 0:11:58]} 17. Qf3 {[%emt 0:03:32]} Qd6 {[%emt 0:06:03]} 18. g3 {[%emt 0:03:35]} f6 {[%emt 0:03:45]} 19. Bxd5 {[%emt 0:06:22]} Qxd5 {[%emt 0:00:10]} 20. Qxd5 {[%emt 0:00:08]} exd5 {[%emt 0:00:03]} 21. Bd2 {[%emt 0:00:26]} Kd7 {[%emt 0:00:37]} 22. Kg2 {[%emt 0:00:27]} Rhe8 {[%emt 0:01:42]} 23. Kf3 {[%emt 0:00:56]} Re6 {[%emt 0:01:03]} 24. Rh1 {[%emt 0:01:58]} h6 {[%emt 0:00:34]} 25. Rh5 {[%emt 0:01:32]} Rb6 {[%emt 0:01:11]} 26. Rxd5+ {[%emt 0:01:17]} Ke6 {[%emt 0:08:36]} 27. c4 {[%emt 0:00:31]} Rd6 {[%emt 0:01:37]} 28. Bf4 {[%emt 0:00:36]} Rxd5 {[%emt 0:00:16]} 29. cxd5+ {[%emt 0:00:50]} Kd7 {[%emt 0:00:05]} 1/2-1/2

[Event "FIDE CB Open 2022"]
[Site "Ceske Budejovice"]
[Date "2022.07.01"]
[Round "1.25"]
[White "Borkovec, Milan"]
[Black "Kosut, Tomas"]
[Result "1-0"]
[ECO "B76"]
[WhiteElo "2188"]
[BlackElo "1820"]
[Annotator "RC"]
[PlyCount "53"]
[EventDate "2022.07.01"]
[EventType "swiss"]
[EventCountry "CZE"]
[SourceTitle "playchess.com"]
[Source "ChessBase"]
[SourceQuality "1"]
[TimeControl "40/5400+30:1800+30"]

1. e4 {[%emt 0:00:17]} c5 {[%emt 0:00:10]} 2. Nf3 {[%emt 0:00:23]} d6 {[%emt 0:00:32]} 3. d4 {[%emt 0:00:10]} cxd4 {[%emt 0:00:06]} 4. Nxd4 {[%emt 0:00:09]} Nf6 {[%emt 0:00:05]} 5. Nc3 {[%emt 0:00:09]} g6 {[%emt 0:00:54]} 6. Be3 {[%emt 0:00:26]} Bg7 {[%emt 0:00:26]} 7. f3 {[%emt 0:02:44]} Nc6 {[%emt 0:00:49]} 8. Qd2 {[%emt 0:10:14]} O-O {[%emt 0:01:28]} 9. O-O-O {[%emt 0:00:17]} Nxd4 {[%emt 0:03:15]} 10. Bxd4 {[%emt 0:00:22]} Be6 {[%emt 0:00:16]} 11. Kb1 {[%emt 0:03:10]} Qc7 {[%emt 0:05:23]} 12. g4 {[%emt 0:03:57]} Rfc8 {[%emt 0:01:37]} 13. h4 {[%emt 0:05:22]} Qa5 {[%emt 0:07:25]} 14. a3 {[%emt 0:04:58]} h5 {[%emt 0:13:29]} 15. Qg5 {[%emt 0:16:33]} Qxg5 {[%emt 0:06:54]} 16. hxg5 {[%emt 0:00:57]} Nh7 {[%emt 0:01:28]} 17. gxh5 {[%emt 0:17:05]} Bxd4 {[%emt 0:02:29]} 18. Rxd4 {[%emt 0:00:03]} Nxg5 {[%emt 0:09:55]} 19. f4 {[%emt 0:02:20]} Nh7 {[%emt 0:03:51]} 20. Rg1 {[%emt 0:01:34]} Nf8 {[%emt 0:08:47]} 21. f5 {[%emt 0:02:34]} Bd7 {[%emt 0:00:58]} 22. Nd5 {[%emt 0:02:03]} Kg7 {[%emt 0:01:39]} 23. hxg6 {[%emt 0:05:21]} fxg6 {[%emt 0:01:32]} 24. Nxe7 {[%emt 0:00:39]} Re8 {[%emt 0:01:15]} 25. Nxg6 {[%emt 0:00:19]} Nxg6 {[%emt 0:00:18]} 26. Rxg6+ {[%emt 0:00:36]} Kh7 {[%emt 0:01:53]} 27. Rd2 {[%emt 0:01:31]} 1-0

[Event "FIDE CB Open 2022"]
[Site "Ceske Budejovice"]
[Date "2022.07.01"]
[Round "1.27"]
[White "Vybiral, Zdenek"]
[Black "Rucabado, Stefan"]
[Result "1-0"]
[ECO "D41"]
[WhiteElo "2143"]
[BlackElo "1809"]
[Annotator "NA RC"]
[PlyCount "63"]
[EventDate "2022.07.01"]
[EventType "swiss"]
[EventCountry "CZE"]
[SourceTitle "playchess.com"]
[Source "ChessBase"]
[SourceQuality "1"]
[TimeControl "40/5400+30:1800+30"]

1. c4 {[%emt 0:00:11]} c6 {[%emt 0:02:59]} 2. e4 {[%emt 0:00:07]} d5 {[%emt 0:00:09]} 3. exd5 {[%emt 0:00:05]} cxd5 {[%emt 0:00:07]} 4. d4 {[%emt 0:00:11]} Nf6 {[%emt 0:01:02]} 5. Nc3 {[%emt 0:00:05]} e6 {[%emt 0:01:24]} 6. Nf3 {[%emt 0:00:12]} Be7 {[%emt 0:03:25]} 7. cxd5 {[%emt 0:00:22]} Nxd5 {[%emt 0:00:19]} 8. Bd3 {[%emt 0:00:08]} b6 {[%emt 0:04:39]} 9. Ne5 {[%emt 0:04:50]} O-O {[%emt 0:03:08]} 10. Qh5 {[%emt 0:01:15]} Nf6 {[%emt 0:08:12]} 11. Qf3 {[%emt 0:04:42]} Qxd4 {[%emt 0:00:07]} 12. Qxa8 {[%emt 0:00:16]} Qxe5+ {[%emt 0:00:07]} 13. Be3 {[%emt 0:00:13]} Bb4 {[%emt 0:02:29]} 14. O-O {[%emt 0:05:26]} Ng4 {[%emt 0:02:48]} 15. g3 {[%emt 0:00:21]} Nxe3 {[%emt 0:05:13]} 16. Rae1 {[%emt 0:01:55]} Bc5 {[%emt 0:09:23]} 17. fxe3 {[%emt 0:19:40]} Bxe3+ {[%emt 0:04:30]} 18. Kg2 {[%emt 0:02:01]} Qc7 {[%emt 0:08:31]} 19. Bxh7+ {[%emt 0:10:56]} Kxh7 {[%emt 0:11:11]} 20. Qe4+ {[%emt 0:00:07]} g6 {[%emt 0:00:05]} 21. Qxe3 {[%emt 0:00:04]} Bb7+ {[%emt 0:00:11]} 22. Kg1 {[%emt 0:11:06]} Qc6 {[%emt 0:13:10]} 23. Ne4 {[%emt 0:01:33]} f6 {[%emt 0:00:04]} 24. Rxf6 {[%emt 0:00:50]} Rxf6 {[%emt 0:00:38]} 25. Nxf6+ {[%emt 0:00:09]} Kg7 {[%emt 0:00:12]} 26. Ne4 {[%emt 0:00:22]} Qd5 {[%emt 0:01:32]} 27. Qd2 {[%emt 0:01:50]} Qxd2 {[%emt 0:02:41]} 28. Nxd2 {[%emt 0:00:08]} Bd5 {[%emt 0:00:02]} 29. Ne4 {[%emt 0:03:12]} Bxa2 {[%emt 0:00:34]} 30. Ra1 {[%emt 0:00:14]} Bd5 {[%emt 0:00:15]} 31. Rxa7+ {[%emt 0:00:09]} Kh6 {[%emt 0:00:06]} 32. Nf6 {[%emt 0:01:06]} 1-0

[Event "FIDE CB Open 2022"]
[Site "Ceske Budejovice"]
[Date "2022.07.01"]
[Round "1.28"]
[White "Steinbauer, Sebastian"]
[Black "Bartos, Jan"]
[Result "0-1"]
[ECO "C01"]
[WhiteElo "1808"]
[BlackElo "2142"]
[Annotator "NA RC"]
[PlyCount "100"]
[EventDate "2022.07.01"]
[EventType "swiss"]
[EventCountry "CZE"]
[SourceTitle "playchess.com"]
[Source "ChessBase"]
[SourceQuality "1"]
[TimeControl "40/5400+30:1800+30"]

1. e4 {[%emt 0:00:08]} e6 {[%emt 0:00:06]} 2. d4 {[%emt 0:00:10]} d5 {[%emt 0:00:06]} 3. exd5 {[%emt 0:00:15]} exd5 {[%emt 0:00:05]} 4. Nc3 {[%emt 0:00:05]} c6 {[%emt 0:00:25]} 5. Nf3 {[%emt 0:01:30]} Bd6 {[%emt 0:00:26]} 6. Bd3 {[%emt 0:00:13]} Ne7 {[%emt 0:00:31]} 7. Bg5 {[%emt 0:00:56]} f6 {[%emt 0:00:19]} 8. Bh4 {[%emt 0:00:06]} Bf5 {[%emt 0:00:40]} 9. Qe2 {[%emt 0:06:00]} Bxd3 {[%emt 0:03:03]} 10. Qxd3 {[%emt 0:00:08]} Nd7 {[%emt 0:00:22]} 11. Bg3 {[%emt 0:01:10]} Nb6 {[%emt 0:00:38]} 12. O-O-O {[%emt 0:01:06]} O-O {[%emt 0:00:47]} 13. h4 {[%emt 0:01:11]} Bxg3 {[%emt 0:05:21]} 14. fxg3 {[%emt 0:00:07]} Qd6 {[%emt 0:02:06]} 15. Nd2 {[%emt 0:01:31]} Rae8 {[%emt 0:04:34]} 16. h5 {[%emt 0:00:56]} Kh8 {[%emt 0:01:31]} 17. Ne2 {[%emt 0:07:48]} Qb4 {[%emt 0:17:05]} 18. Nf4 {[%emt 0:01:21]} Nc4 {[%emt 0:08:34]} 19. Nb3 {[%emt 0:01:07]} Nd6 {[%emt 0:03:24]} 20. Nc5 {[%emt 0:11:01]} Nc4 {[%emt 0:05:43]} 21. Nb3 {[%emt 0:00:34]} a5 {[%emt 0:03:03]} 22. Ng6+ {[%emt 0:02:07]} Nxg6 {[%emt 0:04:57]} 23. hxg6 {[%emt 0:00:29]} h6 {[%emt 0:00:28]} 24. a3 {[%emt 0:01:42]} Qe7 {[%emt 0:04:52]} 25. Kb1 {[%emt 0:10:25]} Qe4 {[%emt 0:02:02]} 26. Nc5 {[%emt 0:05:51]} Qxd3 {[%emt 0:01:16]} 27. Nxd3 {[%emt 0:00:49]} Re3 {[%emt 0:01:41]} 28. Rh3 {[%emt 0:00:53]} Rfe8 {[%emt 0:01:56]} 29. Nf4 {[%emt 0:00:32]} Re1 {[%emt 0:03:30]} 30. Rh1 {[%emt 0:00:32]} Rxh1 {[%emt 0:00:23]} 31. Rxh1 {[%emt 0:00:04]} Re3 {[%emt 0:00:51]} 32. Kc1 {[%emt 0:00:19]} Nd6 {[%emt 0:00:20]} 33. Rh3 {[%emt 0:00:41]} Ne4 {[%emt 0:01:02]} 34. b3 {[%emt 0:01:55]} Ng5 {[%emt 0:03:29]} 35. Kd2 {[%emt 0:01:27]} Re4 {[%emt 0:01:50]} 36. Rh1 {[%emt 0:00:17]} Rxd4+ {[%emt 0:00:23]} 37. Nd3 {[%emt 0:00:38]} Rg4 {[%emt 0:01:23]} 38. b4 {[%emt 0:01:21]} Ne4+ {[%emt 0:00:36]} 39. Ke2 {[%emt 0:01:24]} axb4 {[%emt 0:00:41]} 40. axb4 {[%emt 0:00:22]} Rxg3 {[%emt 0:00:35]} 41. Nf4 {[%emt 0:30:29]} Ra3 {[%emt 0:32:03]} 42. Rc1 {[%emt 0:00:58]} Nc3+ {[%emt 0:03:02]} 43. Kf2 {[%emt 0:00:37]} Kg8 {[%emt 0:00:13]} 44. Re1 {[%emt 0:00:19]} Ne4+ {[%emt 0:00:20]} 45. Kg1 {[%emt 0:00:32]} f5 {[%emt 0:05:54]} 46. Ne6 {[%emt 0:00:14]} Rg3 {[%emt 0:02:46]} 47. Nf4 {[%emt 0:00:23]} Rg4 {[%emt 0:02:07]} 48. Ra1 {[%emt 0:00:25]} Kf8 {[%emt 0:00:07]} 49. Ra8+ {[%emt 0:00:16]} Ke7 {[%emt 0:00:13]} 50. Nd3 {[%emt 0:00:25]} Rxg6 {[%emt 0:00:37]} 0-1

[Event "FIDE CB Open 2022"]
[Site "Ceske Budejovice"]
[Date "2022.07.01"]
[Round "1.29"]
[White "Panjer, Sidney"]
[Black "Pavlicek, Petr"]
[Result "1-0"]
[ECO "A16"]
[WhiteElo "2140"]
[BlackElo "1806"]
[Annotator "RC"]
[PlyCount "111"]
[EventDate "2022.07.01"]
[EventType "swiss"]
[EventCountry "CZE"]
[SourceTitle "playchess.com"]
[Source "ChessBase"]
[SourceQuality "1"]
[TimeControl "40/5400+30:1800+30"]

1. Nf3 {[%emt 0:00:16]} Nf6 {[%emt 0:00:13]} 2. c4 {[%emt 0:00:11]} g6 {[%emt 0:00:23]} 3. Nc3 {[%emt 0:00:41]} d5 {[%emt 0:00:30]} 4. cxd5 {[%emt 0:00:30]} Nxd5 {[%emt 0:00:09]} 5. e4 {[%emt 0:00:18]} Nxc3 {[%emt 0:00:22]} 6. dxc3 {[%emt 0:00:40]} Qxd1+ {[%emt 0:01:17]} 7. Kxd1 {[%emt 0:00:06]} Bg7 {[%emt 0:00:40]} 8. Bf4 {[%emt 0:00:12]} c6 {[%emt 0:00:34]} 9. a4 {[%emt 0:01:12]} Bg4 {[%emt 0:05:29]} 10. Kc2 {[%emt 0:00:51]} Bxf3 {[%emt 0:00:41]} 11. gxf3 {[%emt 0:00:09]} Nd7 {[%emt 0:00:35]} 12. Be2 {[%emt 0:03:03]} O-O-O {[%emt 0:02:00]} 13. b4 {[%emt 0:06:58]} h5 {[%emt 0:09:44]} 14. Be3 {[%emt 0:23:01]} Kb8 {[%emt 0:05:46]} 15. f4 {[%emt 0:02:50]} e6 {[%emt 0:11:45]} 16. Rhg1 {[%emt 0:07:58]} Bf6 {[%emt 0:01:43]} 17. e5 {[%emt 0:06:03]} Be7 {[%emt 0:01:43]} 18. a5 {[%emt 0:00:25]} c5 {[%emt 0:07:59]} 19. b5 {[%emt 0:10:41]} Kc8 {[%emt 0:01:58]} 20. Ra4 {[%emt 0:12:07]} Kb8 {[%emt 0:09:26]} 21. Re4 {[%emt 0:09:02]} Rc8 {[%emt 0:01:36]} 22. Rd1 {[%emt 0:00:51]} Rhd8 {[%emt 0:00:45]} 23. h3 {[%emt 0:00:34]} Nf8 {[%emt 0:03:12]} 24. Rg1 {[%emt 0:00:39]} Rd7 {[%emt 0:02:36]} 25. Bf3 {[%emt 0:02:15]} Rdd8 {[%emt 0:00:44]} 26. Ra4 {[%emt 0:02:10]} Rd7 {[%emt 0:00:38]} 27. Kb3 {[%emt 0:01:45]} Rdd8 {[%emt 0:01:15]} 28. Kc4 {[%emt 0:01:02]} Rd7 {[%emt 0:00:54]} 29. Raa1 {[%emt 0:00:11]} Rcd8 {[%emt 0:04:00]} 30. Be4 {[%emt 0:01:40]} Rc8 {[%emt 0:08:38]} 31. Rgd1 {[%emt 0:02:36]} Rxd1 {[%emt 0:02:45]} 32. Rxd1 {[%emt 0:00:02]} Rc7 {[%emt 0:03:44]} 33. b6 {[%emt 0:04:14]} Rc8 {[%emt 0:00:17]} 34. bxa7+ {[%emt 0:00:39]} Kxa7 {[%emt 0:00:20]} 35. Rb1 {[%emt 0:01:08]} Rc7 {[%emt 0:00:13]} 36. Kb5 {[%emt 0:00:52]} Nd7 {[%emt 0:00:38]} 37. Ra1 {[%emt 0:00:11]} Nb8 {[%emt 0:00:41]} 38. Rd1 {[%emt 0:00:18]} Na6 {[%emt 0:01:46]} 39. Bf3 {[%emt 0:00:52]} Nb8 {[%emt 0:00:49]} 40. Rd2 {[%emt 0:00:26]} Na6 {[%emt 0:00:59]} 41. Bd1 {[%emt 0:02:41]} Nb8 {[%emt 0:01:36]} 42. Ba4 {[%emt 0:07:16]} Nc6 {[%emt 0:03:17]} 43. Rd1 {[%emt 0:07:18]} Nd8 {[%emt 0:09:27]} 44. Kc4 {[%emt 0:00:44]} Ka6 {[%emt 0:01:29]} 45. Rd7 {[%emt 0:01:34]} Rxd7 {[%emt 0:00:24]} 46. Bxd7 {[%emt 0:00:05]} b6 {[%emt 0:01:32]} 47. axb6 {[%emt 0:00:16]} Kxb6 {[%emt 0:00:06]} 48. Be8 {[%emt 0:00:53]} Bf8 {[%emt 0:05:35]} 49. f3 {[%emt 0:00:53]} Be7 {[%emt 0:00:17]} 50. Bf2 {[%emt 0:00:11]} h4 {[%emt 0:00:26]} 51. Bg1 {[%emt 0:00:13]} Bf8 {[%emt 0:05:13]} 52. Be3 {[%emt 0:00:46]} Be7 {[%emt 0:01:17]} 53. Bf2 {[%emt 0:00:24]} g5 {[%emt 0:02:00]} 54. fxg5 {[%emt 0:00:14]} Nc6 {[%emt 0:00:24]} 55. Bxc6 {[%emt 0:00:52]} Kxc6 {[%emt 0:00:15]} 56. f4 {[%emt 0:00:04]} 1-0

[Event "FIDE CB Open 2022"]
[Site "Ceske Budejovice"]
[Date "2022.07.01"]
[Round "1.30"]
[White "Slaby, Matej"]
[Black "Zima, Jan"]
[Result "1-0"]
[ECO "A48"]
[WhiteElo "1796"]
[BlackElo "2134"]
[Annotator "RC"]
[PlyCount "143"]
[EventDate "2022.07.01"]
[EventType "swiss"]
[EventCountry "CZE"]
[SourceTitle "playchess.com"]
[Source "ChessBase"]
[SourceQuality "1"]
[TimeControl "40/5400+30:1800+30"]

1. Nf3 {[%emt 0:00:11]} Nf6 {[%emt 0:00:07]} 2. d4 {[%emt 0:00:11]} g6 {[%emt 0:00:19]} 3. Bf4 {[%emt 0:00:09]} Bg7 {[%emt 0:00:13]} 4. h3 {[%emt 0:00:09]} O-O {[%emt 0:00:12]} 5. e3 {[%emt 0:00:07]} d6 {[%emt 0:00:57]} 6. Bh2 {[%emt 0:00:36]} c5 {[%emt 0:00:20]} 7. c3 {[%emt 0:00:25]} cxd4 {[%emt 0:01:26]} 8. exd4 {[%emt 0:01:25]} Be6 {[%emt 0:02:40]} 9. Bd3 {[%emt 0:02:47]} Nc6 {[%emt 0:00:50]} 10. O-O {[%emt 0:00:31]} Rc8 {[%emt 0:01:00]} 11. Qe2 {[%emt 0:02:34]} Re8 {[%emt 0:09:28]} 12. Nbd2 {[%emt 0:05:40]} Qa5 {[%emt 0:06:21]} 13. Nc4 {[%emt 0:06:51]} Qh5 {[%emt 0:00:47]} 14. Ne3 {[%emt 0:10:37]} Bd7 {[%emt 0:04:25]} 15. Nd2 {[%emt 0:06:11]} Qg5 {[%emt 0:16:51]} 16. f4 {[%emt 0:00:27]} Qa5 {[%emt 0:01:33]} 17. Nf3 {[%emt 0:02:48]} e6 {[%emt 0:14:04]} 18. Qf2 {[%emt 0:07:29]} Qc7 {[%emt 0:01:59]} 19. Qh4 {[%emt 0:05:04]} Ne7 {[%emt 0:01:19]} 20. Ng4 {[%emt 0:02:48]} Nxg4 {[%emt 0:03:56]} 21. hxg4 {[%emt 0:00:13]} Qb6 {[%emt 0:00:25]} 22. Qf2 {[%emt 0:07:11]} Bb5 {[%emt 0:04:53]} 23. Bxb5 {[%emt 0:01:11]} Qxb5 {[%emt 0:00:10]} 24. Ng5 {[%emt 0:05:31]} Qd5 {[%emt 0:01:48]} 25. Rfe1 {[%emt 0:01:53]} h6 {[%emt 0:01:22]} 26. Nf3 {[%emt 0:01:16]} Nc6 {[%emt 0:01:09]} 27. g5 {[%emt 0:04:00]} h5 {[%emt 0:00:25]} 28. Qh4 {[%emt 0:00:24]} Ne7 {[%emt 0:00:54]} 29. Kh1 {[%emt 0:00:53]} Nf5 {[%emt 0:00:11]} 30. Qf2 {[%emt 0:01:39]} Rc6 {[%emt 0:03:30]} 31. Qd2 {[%emt 0:04:51]} Rec8 {[%emt 0:03:08]} 32. Bg1 {[%emt 0:01:09]} a5 {[%emt 0:02:26]} 33. a4 {[%emt 0:00:43]} Rc4 {[%emt 0:08:59]} 34. Bf2 {[%emt 0:02:33]} b5 {[%emt 0:01:49]} 35. axb5 {[%emt 0:00:26]} Qxb5 {[%emt 0:00:02]} 36. Ra2 {[%emt 0:01:23]} a4 {[%emt 0:00:30]} 37. Qe2 {[%emt 0:00:53]} Qd7 {[%emt 0:02:34]} 38. Rea1 {[%emt 0:00:29]} d5 {[%emt 0:04:30]} 39. Nd2 {[%emt 0:01:21]} R4c7 {[%emt 0:00:20]} 40. Rxa4 {[%emt 0:00:29]} Rb7 {[%emt 0:00:07]} 41. Nf3 {[%emt 0:31:45]} Nd6 {[%emt 0:30:28]} 42. Ne1 {[%emt 0:01:35]} Nc4 {[%emt 0:02:08]} 43. Nd3 {[%emt 0:00:44]} Qc7 {[%emt 0:00:00]} 44. g3 {[%emt 0:00:00]} Bf8 {[%emt 0:00:00]} 45. Be3 {[%emt 0:00:00]} Rcb8 {[%emt 0:00:00]} 46. Bc1 {[%emt 0:00:00]} Bd6 {[%emt 0:00:00]} 47. Kg2 {[%emt 0:00:00]} Kg7 {[%emt 0:00:00]} 48. Kf3 {[%emt 0:00:00]} Rb3 {[%emt 0:00:00]} 49. Qc2 {[%emt 0:00:00]} Qc6 {[%emt 0:00:00]} 50. Ra6 {[%emt 0:00:00]} R3b6 {[%emt 0:00:00]} 51. Rxb6 {[%emt 0:00:00]} Qxb6 {[%emt 0:00:00]} 52. Qa4 {[%emt 0:00:00]} Qb7 {[%emt 0:00:00]} 53. Qa7 {[%emt 0:00:00]} Qb3 {[%emt 0:00:00]} 54. Qa4 {[%emt 0:00:00]} Qb7 {[%emt 0:00:00]} 55. Qc2 {[%emt 0:00:00]} Qb5 {[%emt 0:00:00]} 56. Kf2 {[%emt 0:00:00]} Be7 {[%emt 0:00:00]} 57. Ra7 {[%emt 0:00:00]} Bd8 {[%emt 0:00:58]} 58. Qa4 {[%emt 0:04:15]} Qxa4 {[%emt 0:00:37]} 59. Rxa4 {[%emt 0:00:03]} Bb6 {[%emt 0:00:05]} 60. Ke2 {[%emt 0:00:57]} f6 {[%emt 0:02:51]} 61. gxf6+ {[%emt 0:00:23]} Kxf6 {[%emt 0:00:06]} 62. Rb4 {[%emt 0:01:57]} Kf5 {[%emt 0:05:19]} 63. Ne5 {[%emt 0:03:39]} Nxe5 {[%emt 0:00:20]} 64. dxe5 {[%emt 0:00:03]} Bc7 {[%emt 0:01:00]} 65. Rxb8 {[%emt 0:00:01]} Bxb8 {[%emt 0:00:02]} 66. Kf3 {[%emt 0:00:17]} g5 {[%emt 0:00:19]} 67. Be3 {[%emt 0:02:06]} gxf4 {[%emt 0:01:16]} 68. gxf4 {[%emt 0:00:02]} Bc7 {[%emt 0:00:29]} 69. b4 {[%emt 0:00:10]} h4 {[%emt 0:00:16]} 70. b5 {[%emt 0:00:26]} h3 {[%emt 0:00:39]} 71. b6 {[%emt 0:00:16]} Bb8 {[%emt 0:00:04]} 72. Bc5 {[%emt 0:02:22]} 1-0

[Event "FIDE CB Open 2022"]
[Site "Ceske Budejovice"]
[Date "2022.07.01"]
[Round "1.31"]
[White "Johannsson, Birkir Isak"]
[Black "Wojdyla, Alex"]
[Result "0-1"]
[ECO "D33"]
[WhiteElo "2131"]
[BlackElo "1782"]
[Annotator "NA RC"]
[PlyCount "50"]
[EventDate "2022.07.01"]
[EventType "swiss"]
[EventCountry "CZE"]
[SourceTitle "playchess.com"]
[Source "ChessBase"]
[SourceQuality "1"]
[TimeControl "40/5400+30:1800+30"]

1. d4 {[%emt 0:00:11]} Nf6 {[%emt 0:00:04]} 2. Nf3 {[%emt 0:00:16]} e6 {[%emt 0:00:26]} 3. c4 {[%emt 0:00:17]} d5 {[%emt 0:00:06]} 4. g3 {[%emt 0:00:31]} c5 {[%emt 0:01:54]} 5. cxd5 {[%emt 0:02:03]} exd5 {[%emt 0:00:08]} 6. Bg2 {[%emt 0:00:31]} h6 {[%emt 0:01:55]} 7. O-O {[%emt 0:00:34]} Nc6 {[%emt 0:00:11]} 8. Nc3 {[%emt 0:02:33]} Be7 {[%emt 0:00:56]} 9. dxc5 {[%emt 0:01:35]} Bxc5 {[%emt 0:00:24]} 10. b3 {[%emt 0:05:10]} O-O {[%emt 0:01:46]} 11. Bb2 {[%emt 0:04:01]} Be6 {[%emt 0:05:10]} 12. Rc1 {[%emt 0:02:52]} Qd7 {[%emt 0:01:59]} 13. e3 {[%emt 0:04:38]} b6 {[%emt 0:08:47]} 14. a3 {[%emt 0:11:33]} Rad8 {[%emt 0:09:34]} 15. b4 {[%emt 0:01:45]} Be7 {[%emt 0:00:17]} 16. Ne2 {[%emt 0:04:03]} Ne4 {[%emt 0:04:50]} 17. Ned4 {[%emt 0:07:19]} Nxd4 {[%emt 0:01:09]} 18. Nxd4 {[%emt 0:02:42]} Bf6 {[%emt 0:01:53]} 19. Qe2 {[%emt 0:06:21]} Bh3 {[%emt 0:04:55]} 20. Rfd1 {[%emt 0:13:17]} h5 {[%emt 0:04:18]} 21. Bh1 {[%emt 0:08:49]} h4 {[%emt 0:03:00]} 22. Nc6 {[%emt 0:05:12]} Bxb2 {[%emt 0:24:20]} 23. Rxd5 {[%emt 0:08:03]} Qc7 {[%emt 0:06:34]} 24. Rxd8 {[%emt 0:01:23]} Rxd8 {[%emt 0:00:06]} 25. Qxb2 {[%emt 0:00:20]} Qxc6 {[%emt 0:02:12]} 0-1